[Event "5th Ordu Open 2019"]
[Site "Ordu"]
[Date "2019.04.30"]
[Round "2.8"]
[White "Lortkipanidze, Nodar"]
[Black "Yuksel, Atilla Koksal"]
[Result "1/2-1/2"]
[ECO "A03"]
[WhiteElo "2320"]
[BlackElo "2248"]
[Annotator "NA"]
[PlyCount "172"]
[EventDate "2019.04.29"]
[EventType "swiss"]
[EventCountry "TUR"]
[SourceTitle "playchess.com"]
[Source "ChessBase"]
[SourceQuality "1"]
[TimeControl "5400+30"]

1. Nf3 {[%emt 0:08:30]} c5 {[%emt 0:01:30]} 2. b3 {[%emt 0:01:30]} Nc6 {[%emt 0:01:30]} 3. Bb2 {[%emt 0:00:30]} d5 {[%emt 0:00:30]} 4. e3 {[%emt 0:00:00]} Nf6 {[%emt 0:01:30]} 5. Bb5 {[%emt 0:04:00]} Bd7 {[%emt 0:01:30]} 6. O-O {[%emt 0:01:30]} e6 {[%emt 0:01:30]} 7. Bxc6 {[%emt 0:01:30]} Bxc6 {[%emt 0:00:30]} 8. Ne5 {[%emt 0:00:00]} Bd6 {[%emt 0:17:30]} 9. Nxc6 {[%emt 0:01:00]} bxc6 {[%emt 0:02:30]} 10. f4 {[%emt 0:00:30]} O-O {[%emt 0:00:30]} 11. Nc3 {[%emt 0:03:30] A03: Bird's Opening with 1...d5} e5 {[%emt 0:10:30]} 12. fxe5 {[%emt 0:02:30]} (12. Na4 exf4 13. exf4 Re8 14. Qf3 Rb8 15. Rae1 c4 16. Rxe8+ Nxe8 17. Re1 Bf8 18. Bd4 a6 {0-1 (48) Avdic,M (2293)-Nurkic,S (2368) Tuzla 2009}) 12... Bxe5 {[%emt 0:00:30]} 13. Na4 {[%emt 0:00:00]} Bxb2 {[%emt 0:00:30]} 14. Nxb2 {[%emt 0:00:00]} Qd6 $146 {[%emt 0:01:30]} ({Predecessor:} 14... c4 15. bxc4 d4 16. Qf3 dxe3 17. dxe3 Re8 18. Nd3 Qe7 {0-1 (30) Ashcar,D (1685)-Caldeira,T (2009) Sao Paulo 2015}) 15. Qf3 {[%emt 0:06:30]} Ne4 {[%emt 0:04:30]} 16. Rad1 {[%emt 0:00:30]} Rae8 {[%emt 0:00:30]} 17. Na4 {[%emt 0:02:30]} c4 {[%emt 0:05:30]} 18. d3 {[%emt 0:08:30]} cxd3 {[%emt 0:00:30]} 19. cxd3 {[%emt 0:00:30]} Nc5 {[%emt 0:02:30]} 20. Nxc5 {[%emt 0:04:30]} Qxc5 {[%emt 0:00:30]} 21. d4 {[%emt 0:00:00]} Qa3 {[%emt 0:02:30]} 22. Rd2 {[%emt 0:01:00]} Re4 {[%emt 0:03:30]} 23. Rc2 {[%emt 0:03:30]} Qe7 {[%emt 0:03:30]} 24. Rxc6 {[%emt 0:02:30]} Rxe3 {[%emt 0:00:00]} 25. Qxd5 {[%emt 0:00:30]} Re1 {[%emt 0:00:00]} 26. Qf3 {[%emt 0:00:30]} Rxf1+ {[%emt 0:00:30]} 27. Qxf1 {[%emt 0:01:30]} Rd8 {[%emt 0:04:30]} 28. Rc4 {[%emt 0:01:30]} Rxd4 {[%emt 0:02:30]} 29. Rc8+ {[%emt 0:05:30]} Rd8 {[%emt 0:00:30]} 30. Qe2 {[%emt 0:00:30]} Qd7 {[%emt 0:01:30]} 31. Rxd8+ {[%emt 0:00:30]} Qxd8 {[%emt 0:00:30]} 32. Qe3 {[%emt 0:00:00]} Qd7 {[%emt 0:01:30]} 33. h3 {[%emt 0:00:00]} g6 {[%emt 0:00:30]} 34. Qf4 {[%emt 0:00:30]} Qe7 {[%emt 0:03:30]} 35. b4 {[%emt 0:02:30]} Qd7 {[%emt 0:01:30]} 36. Qb8+ {[%emt 0:00:30]} Kg7 {[%emt 0:00:00]} 37. Qe5+ {[%emt 0:00:30]} Kg8 {[%emt 0:00:00]} 38. b5 {[%emt 0:00:00]} Qd1+ {[%emt 0:00:30]} 39. Kh2 {[%emt 0:00:00]} Qa4 {[%emt 0:00:30]} 40. Qd5 {[%emt 0:00:30]} Qf4+ {[%emt 0:02:30]} 41. Kg1 {[%emt 0:01:30]} Qe3+ {[%emt 0:02:30]} 42. Kf1 {[%emt 0:00:30]} Kg7 {[%emt 0:02:30]} 43. Qc4 {[%emt 0:00:30]} Qa3 {[%emt 0:00:30]} 44. Ke2 {[%emt 0:00:30]} h5 {[%emt 0:01:28]} 45. Kd1 {[%emt 0:00:30]} Kg8 {[%emt 0:02:24]} 46. Kc2 {[%emt 0:00:30]} Qg3 {[%emt 0:01:28]} 47. Qd5 {[%emt 0:01:30]} Qa3 {[%emt 0:00:16]} 48. Qb3 {[%emt 0:01:30]} Qc5+ {[%emt 0:00:09]} 49. Kd3 {[%emt 0:03:30]} Qf2 {[%emt 0:01:23]} 50. Qd5 {[%emt 0:01:30]} Qg3+ {[%emt 0:00:37]} 51. Kc4 {[%emt 0:01:30]} Qa3 {[%emt 0:00:21]} 52. Qd2 {[%emt 0:00:30]} Kh7 {[%emt 0:02:06]} 53. Kd5 {[%emt 0:00:30]} Qe7 {[%emt 0:00:05]} 54. Kc6 {[%emt 0:00:30]} Qe6+ {[%emt 0:00:29]} 55. Kc5 {[%emt 0:03:30]} Qb6+ {[%emt 0:01:35]} 56. Kb4 {[%emt 0:00:30]} Qc7 {[%emt 0:01:00]} 57. Qd5 {[%emt 0:00:30]} Qe7+ {[%emt 0:00:26]} 58. Kc4 {[%emt 0:02:30]} Qc7+ {[%emt 0:01:32]} 59. Kb3 {[%emt 0:02:30]} Qe7 {[%emt 0:01:46]} 60. a4 {[%emt 0:03:30]} Qe3+ {[%emt 0:00:54]} 61. Kc4 {[%emt 0:01:30]} Qc1+ {[%emt 0:03:29]} 62. Kb4 {[%emt 0:00:30]} Qe1+ {[%emt 0:00:05]} 63. Kc5 {[%emt 0:01:30]} Qf2+ {[%emt 0:00:39]} 64. Kc6 {[%emt 0:08:22]} Qc2+ {[%emt 0:02:06]} 65. Kb7 {[%emt 0:00:30]} Qxa4 {[%emt 0:00:30]} 66. Qxf7+ {[%emt 0:00:30]} Kh6 {[%emt 0:00:00]} 67. Qd5 {[%emt 0:00:00]} Qa5 {[%emt 0:01:06]} 68. Qc6 {[%emt 0:00:00]} Qa3 {[%emt 0:00:31]} 69. Ka8 {[%emt 0:00:58]} Qe3 {[%emt 0:02:41]} 70. Qb7 {[%emt 0:00:06]} Qc5 {[%emt 0:01:35]} 71. h4 {[%emt 0:00:34]} Qb4 {[%emt 0:00:35]} 72. Qc8 {[%emt 0:01:07]} Qd4 {[%emt 0:01:26]} 73. Qg8 {[%emt 0:00:58]} Qe4+ {[%emt 0:01:16]} 74. Kxa7 {[%emt 0:00:30]} Qe7+ {[%emt 0:00:00]} 75. Kb6 {[%emt 0:01:19]} Qd6+ {[%emt 0:00:15]} 76. Kb7 {[%emt 0:00:00]} Qe7+ {[%emt 0:00:30]} 77. Kc6 {[%emt 0:00:27]} Qf6+ {[%emt 0:00:00]} 78. Kc5 {[%emt 0:00:34]} Qf2+ {[%emt 0:00:19]} 79. Kb4 {[%emt 0:00:20]} Qd2+ {[%emt 0:00:15]} 80. Ka4 {[%emt 0:00:36]} Qd4+ {[%emt 0:00:30]} 81. Ka5 {[%emt 0:00:02]} Qa7+ {[%emt 0:00:19]} 82. Kb4 {[%emt 0:00:30]} Qe7+ {[%emt 0:00:00]} 83. Kc3 {[%emt 0:00:43]} Qe3+ {[%emt 0:00:00]} 84. Kc4 {[%emt 0:00:33]} Qe4+ {[%emt 0:00:05]} 85. Kc5 {[%emt 0:00:41]} Qe7+ $11 {[%emt 0:00:30]} 86. Kc6 {[%emt 0:00:30]} Qf6+ {[%emt 0:00:00]} 1/2-1/2

[Event "5th Ordu Open 2019"]
[Site "Ordu"]
[Date "2019.04.30"]
[Round "2.11"]
[White "Neverov, Valeriy"]
[Black "Dogan, Nazmi Can"]
[Result "1/2-1/2"]
[ECO "E62"]
[WhiteElo "2495"]
[BlackElo "2214"]
[Annotator "RC"]
[PlyCount "120"]
[EventDate "2019.04.29"]
[EventType "swiss"]
[EventCountry "TUR"]
[SourceTitle "playchess.com"]
[Source "ChessBase"]
[SourceQuality "1"]
[TimeControl "5400+30"]

1. d4 {[%emt 0:00:30]} Nf6 {[%emt 0:07:30]} 2. Nf3 {[%emt 0:00:30]} g6 {[%emt 0:00:30]} 3. c4 {[%emt 0:00:30]} Bg7 {[%emt 0:00:30]} 4. g3 {[%emt 0:00:30]} O-O {[%emt 0:00:30]} 5. Bg2 {[%emt 0:00:30]} d6 {[%emt 0:00:00]} 6. O-O {[%emt 0:00:00]} c6 {[%emt 0:00:00]} 7. Nc3 {[%emt 0:03:00]} Bf5 {[%emt 0:00:30]} 8. b3 {[%emt 0:15:30]} Ne4 {[%emt 0:00:30]} 9. Bb2 {[%emt 0:00:00]} Nxc3 {[%emt 0:02:30]} 10. Bxc3 {[%emt 0:00:00]} Be4 {[%emt 0:00:30]} 11. e3 {[%emt 0:00:00]} Nd7 {[%emt 0:01:30]} 12. Qe2 {[%emt 0:04:00]} e6 {[%emt 0:11:30]} 13. Rac1 {[%emt 0:09:30]} a5 {[%emt 0:14:30]} 14. Bh3 {[%emt 0:07:30]} Bxf3 {[%emt 0:02:30]} 15. Qxf3 {[%emt 0:00:30]} d5 {[%emt 0:00:30]} 16. e4 {[%emt 0:18:30]} Nf6 {[%emt 0:09:30]} 17. exd5 {[%emt 0:04:30]} exd5 {[%emt 0:02:30]} 18. Qd3 {[%emt 0:01:30]} a4 {[%emt 0:09:30]} 19. Rfd1 {[%emt 0:08:30]} Re8 {[%emt 0:08:30]} 20. Be1 {[%emt 0:07:41]} Qe7 {[%emt 0:04:30]} 21. Bf1 {[%emt 0:04:19]} Qa3 {[%emt 0:12:16]} 22. Qc2 {[%emt 0:01:28]} axb3 {[%emt 0:01:42]} 23. axb3 {[%emt 0:00:02]} h5 {[%emt 0:05:15]} 24. Rb1 {[%emt 0:02:53]} h4 {[%emt 0:00:59]} 25. Bg2 {[%emt 0:02:27]} hxg3 {[%emt 0:00:30]} 26. hxg3 {[%emt 0:00:00]} Re6 {[%emt 0:02:21]} 27. Bc3 {[%emt 0:07:49]} Qd6 {[%emt 0:00:51]} 28. Re1 {[%emt 0:00:48]} Rae8 {[%emt 0:00:30]} 29. Rxe6 {[%emt 0:00:30]} Rxe6 {[%emt 0:00:00]} 30. Ra1 {[%emt 0:00:43]} Qe7 {[%emt 0:00:54]} 31. Bf3 {[%emt 0:00:46]} Ne4 {[%emt 0:00:18]} 32. cxd5 {[%emt 0:00:33]} cxd5 {[%emt 0:00:30]} 33. Qd3 {[%emt 0:00:00]} Rc6 {[%emt 0:00:33]} 34. Be1 {[%emt 0:00:39]} Qe6 {[%emt 0:00:42]} 35. Bg2 {[%emt 0:00:59]} Kh7 {[%emt 0:00:21]} 36. Rd1 {[%emt 0:00:19]} f5 {[%emt 0:01:43]} 37. f3 {[%emt 0:00:31]} Nf6 {[%emt 0:00:20]} 38. Bf2 {[%emt 0:00:30]} Qc8 {[%emt 0:00:00]} 39. Re1 {[%emt 0:00:34]} Rc1 {[%emt 0:00:06]} 40. Bf1 {[%emt 0:00:26]} Bf8 {[%emt 0:01:28]} 41. Kg2 {[%emt 0:00:24]} Qc7 {[%emt 0:00:27]} 42. Qb5 {[%emt 0:00:30]} Bd6 {[%emt 0:00:00]} 43. Bd3 {[%emt 0:00:35]} Nh5 {[%emt 0:00:37]} 44. Qxd5 {[%emt 0:00:30]} Bxg3 {[%emt 0:00:21]} 45. Qc4 {[%emt 0:00:05]} Qd6 {[%emt 0:01:36]} 46. Qc5 {[%emt 0:00:17]} Nf4+ {[%emt 0:00:32]} 47. Kxg3 {[%emt 0:00:30]} Qxc5 {[%emt 0:00:00]} 48. dxc5 {[%emt 0:00:38]} Nxd3 {[%emt 0:00:00]} 49. f4 {[%emt 0:00:50]} Kg8 {[%emt 0:00:00]} 50. Be3 {[%emt 0:00:40]} Kf7 {[%emt 0:00:01]} 51. Kh4 {[%emt 0:00:25]} Nb4 {[%emt 0:02:01]} 52. Bd2 {[%emt 0:00:30]} Nd5 {[%emt 0:00:00]} 53. b4 {[%emt 0:00:12]} Nf6 {[%emt 0:00:00]} 54. b5 {[%emt 0:01:08]} Ne4 {[%emt 0:00:01]} 55. c6 {[%emt 0:00:41]} bxc6 {[%emt 0:00:30]} 56. bxc6 {[%emt 0:00:00]} Ke7 {[%emt 0:00:39]} 57. Bb4+ {[%emt 0:00:30]} Kd8 {[%emt 0:00:30]} 58. Ba5+ {[%emt 0:00:02]} Ke7 {[%emt 0:00:00]} 59. Bb4+ {[%emt 0:01:23]} Kd8 {[%emt 0:00:21]} 60. Ba5+ {[%emt 0:00:30]} Ke7 {[%emt 0:00:00]} 1/2-1/2

[Event "5th Ordu Open 2019"]
[Site "Ordu"]
[Date "2019.04.30"]
[Round "2.12"]
[White "Hamidi, Amir Mohammad"]
[Black "Mazur, Stefan"]
[Result "1/2-1/2"]
[ECO "C47"]
[WhiteElo "2217"]
[BlackElo "2435"]
[Annotator "ChessBase"]
[PlyCount "108"]
[EventDate "2019.04.29"]
[EventType "swiss"]
[EventCountry "TUR"]
[SourceTitle "playchess.com"]
[Source "ChessBase"]
[SourceQuality "1"]
[TimeControl "5400+30"]

1. e4 {[%emt 0:03:30]} e5 {[%emt 0:00:30]} 2. Nf3 {[%emt 0:00:30]} Nc6 {[%emt 0:00:30]} 3. Nc3 {[%emt 0:00:30]} Nf6 {[%emt 0:00:30]} 4. d4 {[%emt 0:00:30]} exd4 {[%emt 0:00:30]} 5. Nxd4 {[%emt 0:00:30]} Bb4 {[%emt 0:00:30]} 6. Nxc6 {[%emt 0:00:30]} bxc6 {[%emt 0:00:30]} 7. Bd3 {[%emt 0:00:00]} d5 {[%emt 0:00:00]} 8. exd5 {[%emt 0:00:00]} O-O {[%emt 0:00:00]} 9. O-O {[%emt 0:00:00]} cxd5 {[%emt 0:00:00]} 10. h3 {[%emt 0:00:00]} c6 {[%emt 0:00:00]} 11. Qf3 {[%emt 0:00:30]} Bd6 {[%emt 0:09:30]} 12. Bf4 {[%emt 0:00:30]} Rb8 {[%emt 0:01:30]} 13. b3 {[%emt 0:04:30]} Bxf4 {[%emt 0:05:30]} 14. Qxf4 {[%emt 0:00:30]} Be6 {[%emt 0:00:30]} 15. Na4 {[%emt 0:05:30]} Qa5 {[%emt 0:00:30]} 16. Qd6 {[%emt 0:01:30]} Rbc8 {[%emt 0:08:30]} 17. Qc5 {[%emt 0:04:30]} Qc7 {[%emt 0:00:30]} 18. b4 {[%emt 0:00:00]} Nd7 {[%emt 0:05:30]} 19. Qd4 {[%emt 0:00:00]} c5 {[%emt 0:01:30]} 20. Nxc5 {[%emt 0:00:30]} Nxc5 {[%emt 0:00:00]} 21. Qxc5 {[%emt 0:00:30]} Qxc5 {[%emt 0:00:00]} 22. bxc5 {[%emt 0:00:30]} Rxc5 {[%emt 0:00:30]} 23. Rfb1 {[%emt 0:00:30]} g6 {[%emt 0:02:30]} 24. Rb5 {[%emt 0:02:30]} Rxb5 {[%emt 0:04:30]} 25. Bxb5 {[%emt 0:00:00]} Rb8 {[%emt 0:10:30]} 26. Ba4 {[%emt 0:00:00]} Kg7 {[%emt 0:07:30]} 27. Bb3 {[%emt 0:15:30]} Kf6 {[%emt 0:00:30]} 28. Kf1 {[%emt 0:01:30]} a5 {[%emt 0:03:30]} 29. Rd1 {[%emt 0:08:30]} Ke5 {[%emt 0:01:30]} 30. c3 {[%emt 0:00:00]} Rc8 {[%emt 0:07:30]} 31. Rd3 {[%emt 0:01:00]} Rc5 {[%emt 0:00:30]} 32. Ke1 {[%emt 0:01:30]} Bd7 {[%emt 0:00:00]} 33. Kd2 {[%emt 0:02:30]} a4 {[%emt 0:06:00]} 34. Bc2 {[%emt 0:00:00]} Rc4 {[%emt 0:02:30]} 35. Re3+ {[%emt 0:03:00]} Kd6 {[%emt 0:00:30]} 36. Re1 {[%emt 0:09:30]} h5 {[%emt 0:06:09]} 37. Bd3 {[%emt 0:03:30]} Rf4 {[%emt 0:03:52]} 38. Ke3 {[%emt 0:03:30]} g5 {[%emt 0:02:42]} 39. a3 {[%emt 0:05:30]} Bc6 {[%emt 0:05:00]} 40. f3 {[%emt 0:00:30]} Kc5 {[%emt 0:01:36]} 41. Rb1 {[%emt 0:00:30]} h4 {[%emt 0:01:54]} 42. Rb4 {[%emt 0:02:30]} Rf6 {[%emt 0:00:07]} 43. Rg4 {[%emt 0:01:30]} Re6+ {[%emt 0:00:30]} 44. Kd2 {[%emt 0:00:00]} f6 45. f4 {[%emt 0:00:00]} Re8 {[%emt 0:03:58]} 46. fxg5 {[%emt 0:00:30]} fxg5 {[%emt 0:00:01]} 47. Rxg5 {[%emt 0:01:30]} Rf8 {[%emt 0:00:04]} 48. Rg4 {[%emt 0:05:12]} Rf2+ {[%emt 0:00:41]} 49. Kc1 {[%emt 0:00:17]} Bd7 {[%emt 0:00:56]} 50. Rg5 {[%emt 0:03:14]} Bc6 {[%emt 0:00:30]} 51. Rg7 {[%emt 0:02:55]} Rf4 {[%emt 0:00:54]} 52. Rg5 {[%emt 0:03:29]} Rf2 {[%emt 0:00:09]} 53. Rg4 {[%emt 0:03:05]} Bd7 {[%emt 0:00:03]} 54. Rg7 {[%emt 0:01:39]} Bc6 {[%emt 0:00:12]} 1/2-1/2

[Event "5th Ordu Open 2019"]
[Site "Ordu"]
[Date "2019.04.30"]
[Round "2.13"]
[White "Sibashvili, Giorgi"]
[Black "Yasin, Hur"]
[Result "1-0"]
[ECO "A33"]
[WhiteElo "2398"]
[BlackElo "1959"]
[Annotator "NA"]
[PlyCount "93"]
[EventDate "2019.04.29"]
[EventType "swiss"]
[EventCountry "TUR"]
[SourceTitle "playchess.com"]
[Source "ChessBase"]
[SourceQuality "1"]
[TimeControl "5400+30"]

1. d4 {[%emt 0:01:30]} Nf6 {[%emt 0:00:30]} 2. c4 {[%emt 0:00:30]} c5 {[%emt 0:00:30]} 3. Nf3 {[%emt 0:02:30]} cxd4 {[%emt 0:00:30]} 4. Nxd4 {[%emt 0:00:30]} e6 {[%emt 0:00:30]} 5. Nc3 {[%emt 0:00:30]} Nc6 {[%emt 0:04:30]} 6. g3 {[%emt 0:06:30]} a6 {[%emt 0:06:30]} 7. Bg2 {[%emt 0:00:30]} Qc7 {[%emt 0:00:30]} 8. O-O {[%emt 0:00:30] A33: Symmetrical English: 2 Nf3 Nf6 3 d4 cxd4 4 Nxd4 e6 5 Nc3 Nc6} d6 {[%emt 0:00:30]} 9. b3 {[%emt 0:08:30]} Be7 {[%emt 0:00:30]} 10. Bb2 {[%emt 0:01:30]} Bd7 {[%emt 0:01:30]} 11. Rc1 {[%emt 0:01:30]} (11. e3 Rc8 12. Rc1 Qb8 13. Na4 Nxd4 14. Bxd4 {½-½ (27) Iturrizaga Bonelli,E (2652)-Spraggett,K (2530) Maia 2018}) 11... Qa5 {[%emt 0:01:30]} 12. Qd2 {[%emt 0:07:30]} Rc8 {[%emt 0:05:30]} 13. Rfd1 {[%emt 0:00:30]} Nxd4 {[%emt 0:01:30]} 14. Qxd4 {[%emt 0:00:30]} Bc6 {[%emt 0:00:30]} 15. Ne4 $146 {[%emt 0:10:30]} ({Predecessor:} 15. e4 O-O 16. a3 {0-1 (27) Jeanne,M (2206)-Mateo,R (2427) Cappelle-la-Grande 2013}) 15... Bxe4 {[%emt 0:07:30]} 16. Bxe4 {[%emt 0:00:30]} e5 {[%emt 0:00:00]} 17. Qe3 {[%emt 0:05:30]} Nxe4 {[%emt 0:05:00]} 18. Qxe4 {[%emt 0:00:30]} Rc6 {[%emt 0:00:30] [#]} 19. c5 $1 {[%emt 0:02:30]} O-O {[%emt 0:12:30]} 20. cxd6 {[%emt 0:02:30]} Rxd6 {[%emt 0:00:30]} 21. Qxe5 {[%emt 0:07:30]} ({Don't take} 21. Bxe5 Re6 $16) 21... Qxe5 {[%emt 0:01:30]} 22. Bxe5 {[%emt 0:00:30]} Re6 {[%emt 0:00:30]} 23. Rd5 {[%emt 0:00:00]} f6 {[%emt 0:00:30]} 24. Bf4 {[%emt 0:01:00]} Rxe2 {[%emt 0:00:30]} 25. Rd7 {[%emt 0:00:30]} Re8 {[%emt 0:02:30]} 26. Rxb7 {[%emt 0:01:30]} Bf8 {[%emt 0:03:30]} 27. a4 {[%emt 0:01:30]} Re1+ {[%emt 0:03:30]} 28. Rxe1 {[%emt 0:01:30]} Rxe1+ {[%emt 0:00:30]} 29. Kg2 {[%emt 0:00:30]} Rb1 {[%emt 0:02:30]} 30. Be3 {[%emt 0:01:30]} a5 {[%emt 0:00:30]} 31. Bd2 {[%emt 0:01:30]} Bc5 {[%emt 0:02:30]} 32. Bxa5 {[%emt 0:03:30]} Rb2 {[%emt 0:00:30]} 33. Be1 {[%emt 0:00:30]} Rb1 $18 {[%emt 0:02:30]} 34. Bc3 {[%emt 0:02:30]} Rc1 {[%emt 0:00:30]} 35. Bd2 {[%emt 0:01:30]} Rd1 {[%emt 0:01:30]} 36. Bb4 {[%emt 0:00:30]} Bxb4 {[%emt 0:04:30]} 37. Rxb4 {[%emt 0:00:30]} Ra1 {[%emt 0:00:30]} 38. Rb7 {[%emt 0:00:30]} h5 {[%emt 0:00:00]} 39. h4 {[%emt 0:00:30]} Kh7 {[%emt 0:00:00]} 40. Rb5 {[%emt 0:00:30]} Kg6 {[%emt 0:00:30]} 41. a5 {[%emt 0:00:00]} Ra3 {[%emt 0:01:30]} 42. b4 {[%emt 0:00:00]} Ra4 {[%emt 0:00:00]} 43. Rb6 {[%emt 0:00:30]} Kf5 {[%emt 0:00:00]} 44. a6 {[%emt 0:00:30]} Ke4 {[%emt 0:00:30]} 45. b5 {[%emt 0:00:30]} Kd5 {[%emt 0:02:30]} 46. Rb7 {[%emt 0:00:30]} Kc5 {[%emt 0:00:30]} 47. a7 {[%emt 0:00:30]} 1-0

[Event "5th Ordu Open 2019"]
[Site "Ordu"]
[Date "2019.04.30"]
[Round "2.14"]
[White "Kilic, Efe Mert"]
[Black "Rzayev, Askar Aliakbar"]
[Result "1/2-1/2"]
[ECO "B12"]
[WhiteElo "2248"]
[BlackElo "2085"]
[Annotator "NA"]
[PlyCount "41"]
[EventDate "2019.04.29"]
[EventType "swiss"]
[EventCountry "TUR"]
[SourceTitle "playchess.com"]
[Source "ChessBase"]
[SourceQuality "1"]
[TimeControl "5400+30"]

{[%evp 9,40,6,7,-2,-8,-6,0,-5,-12,-11,-13,-16,-6,-33,-16,-15,-21,-105,-65,32767,32767,-97,32767,32767,32767,32767,32767,-102,32767,32767,32767,32767,-58]} 1. e4 {[%emt 0:08:30]} c6 {[%emt 0:00:30]} 2. d4 {[%emt 0:02:30]} d5 {[%emt 0:00:30]} 3. e5 {[%emt 0:00:30]} c5 {[%emt 0:00:00]} 4. c3 {[%emt 0:00:30]} Nc6 {[%emt 0:00:00]} 5. Ne2 {[%emt 0:12:30]} e6 {[%emt 0:10:30]} 6. f4 {[%emt 0:06:30] B12: Caro-Kann: Advance Variation} (6. Nd2 Nh6 7. Nf3 Nf5 8. Ng3 cxd4 9. Nxf5 exf5 10. cxd4 Qb6 11. Be2 h6 12. a3 g5 13. h3 {½-½ (43) Yu,Y (2764)-Ghaem Maghami,E (2537) St Petersburg 2018}) 6... h5 {[%emt 0:01:30]} 7. Nd2 $146 {[%emt 0:06:30]} ({Predecessor:} 7. Be3 cxd4 8. Nxd4 Nge7 9. Bd3 g6 10. Nd2 Nf5 11. Nxf5 gxf5 {1-0 (43) Yu,L (2443)-Tian,T (2235) Hefei 2010}) 7... Nh6 {[%emt 0:00:30]} 8. Nf3 {[%emt 0:00:30]} Qb6 {[%emt 0:07:30]} 9. g3 {[%emt 0:06:30]} Nf5 {[%emt 0:03:30]} 10. Bg2 {[%emt 0:07:30]} cxd4 {[%emt 0:05:30]} 11. cxd4 {[%emt 0:00:30]} Bb4+ {[%emt 0:00:30]} 12. Kf2 {[%emt 0:00:00]} Bd7 {[%emt 0:00:30]} 13. h3 {[%emt 0:01:00]} (13. Bd2 $11 {keeps the balance.}) 13... Be7 {[%emt 0:11:30]} 14. g4 {[%emt 0:09:30]} Nh4 {[%emt 0:03:30]} 15. Kg3 {[%emt 0:06:30]} Nxg2 {[%emt 0:02:30]} 16. Kxg2 {[%emt 0:00:30]} O-O-O {[%emt 0:00:30]} 17. b3 {[%emt 0:05:30]} Qa6 {[%emt 0:08:30]} 18. Be3 {[%emt 0:03:30]} hxg4 {[%emt 0:01:30]} 19. hxg4 {[%emt 0:00:30]} Rxh1 {[%emt 0:00:30]} 20. Kxh1 {[%emt 0:00:00]} Kb8 $15 {[%emt 0:00:30]} 21. a4 {[%emt 0:13:25]} 1/2-1/2

[Event "5th Ordu Open 2019"]
[Site "Ordu"]
[Date "2019.04.30"]
[Round "2.16"]
[White "Zahedifar, Anahita"]
[Black "Ozsakallioglu, Akin"]
[Result "1-0"]
[ECO "A68"]
[WhiteElo "2185"]
[BlackElo "2065"]
[Annotator "NA"]
[PlyCount "65"]
[EventDate "2019.04.29"]
[EventType "swiss"]
[EventCountry "TUR"]
[SourceTitle "playchess.com"]
[Source "ChessBase"]
[SourceQuality "1"]
[TimeControl "5400+30"]

1. d4 {[%emt 0:00:30]} Nf6 {[%emt 0:00:30]} 2. c4 {[%emt 0:00:30]} g6 {[%emt 0:00:00]} 3. Nc3 {[%emt 0:00:00]} Bg7 {[%emt 0:00:00]} 4. e4 {[%emt 0:00:00]} d6 {[%emt 0:00:30]} 5. f4 {[%emt 0:00:00]} O-O {[%emt 0:00:30]} 6. Nf3 {[%emt 0:00:00]} c5 {[%emt 0:01:30]} 7. d5 {[%emt 0:00:30]} e6 {[%emt 0:00:30]} 8. Be2 {[%emt 0:00:30]} exd5 {[%emt 0:00:30]} 9. cxd5 {[%emt 0:00:00]} Bg4 {[%emt 0:00:30]} 10. O-O {[%emt 0:00:00]} Nbd7 {[%emt 0:01:30]} 11. h3 {[%emt 0:00:30]} Bxf3 $1 {[%emt 0:00:30]} 12. Bxf3 {[%emt 0:00:30]} Re8 {[%emt 0:00:30]} 13. Re1 {[%emt 0:05:30]} a6 {[%emt 0:02:30]} 14. a4 {[%emt 0:00:30]} Rb8 {[%emt 0:08:30]} 15. a5 {[%emt 0:04:30] A68: Modern Benoni: Four Pawns Attack without 9...Re8} (15. Be3 b5 16. axb5 axb5 17. Bf2 b4 18. Na4 Kh8 19. b3 Ng8 20. Ra2 g5 21. e5 gxf4 22. exd6 Rxe1+ 23. Qxe1 {½-½ (45) Fier,A (2609)-Minasian,A (2505) Jermuk 2013}) 15... b5 {[%emt 0:01:30]} 16. axb6 $1 {[%emt 0:00:30] Discovered Attack} Rxb6 {[%emt 0:00:30]} 17. Na4 {[%emt 0:06:30]} Rb4 {[%emt 0:46:30]} 18. Bd2 {[%emt 0:04:30]} Rbxe4 $146 {[%emt 0:00:30]} ({Predecessor:} 18... Rd4 19. Qc2 Bh6 20. Be3 Rb4 21. Bd2 Rd4 22. Be3 Rb4 {0-1 (41) Simantsev,M (2409)-Berelowitsch,A (2492) Kharkov 1999}) 19. Bxe4 {[%emt 0:00:00]} Nxe4 $14 {[%emt 0:00:30]} 20. Bc3 {[%emt 0:07:00]} Bh6 {[%emt 0:01:30]} 21. Qf3 {[%emt 0:09:30]} f5 {[%emt 0:00:30]} 22. g4 {[%emt 0:04:30]} Qe7 {[%emt 0:13:33]} 23. Re2 {[%emt 0:11:30]} Qf7 {[%emt 0:02:29]} 24. Rae1 {[%emt 0:02:30]} Rb8 {[%emt 0:04:11]} 25. g5 {[%emt 0:08:30]} Bf8 {[%emt 0:00:50]} 26. Qd3 {[%emt 0:01:30]} Rb5 {[%emt 0:01:14]} 27. h4 {[%emt 0:02:30]} c4 {[%emt 0:07:00]} 28. Qd4 {[%emt 0:01:30]} Qxd5 {[%emt 0:01:28]} 29. Qh8+ {[%emt 0:04:30]} Kf7 {[%emt 0:00:36]} 30. Qxh7+ {[%emt 0:01:30]} Ke8 {[%emt 0:00:05]} 31. Qxg6+ {[%emt 0:01:30]} Kd8 {[%emt 0:00:06]} 32. Rxe4 {[%emt 0:02:30]} fxe4 {[%emt 0:00:30]} 33. Qxe4 {[%emt 0:00:00]} 1-0